[Event "ESP-ch Rapid 2018"]
[Site "Linares"]
[Date "2018.08.19"]
[Round "6"]
[White "Cabrera Ruiz, Luis"]
[Black "Arjol Lopez, Daniel"]
[Result "0-1"]
[ECO "B39"]
[WhiteElo "2122"]
[BlackElo "2137"]
[Annotator "NA"]
[PlyCount "138"]
[EventDate "2018.08.19"]
[EventType "team-tourn"]
[EventCountry "ESP"]
[SourceTitle "playchess.com"]
[Source "ChessBase"]
[SourceQuality "1"]
[TimeControl "900+5"]

1. e4 {[%emt 0:00:00]} c5 {[%emt 0:00:00]} 2. c4 {[%emt 0:00:01]} g6 {[%emt 0:00:00]} 3. Ne2 {[%emt 0:00:03]} Bg7 {[%emt 0:00:00]} 4. d4 {[%emt 0:00:01]} cxd4 {[%emt 0:00:00]} 5. Nxd4 {[%emt 0:00:02]} Nc6 {[%emt 0:00:00]} 6. Be3 {[%emt 0:00:02]} Nf6 {[%emt 0:00:01]} 7. Nc3 {[%emt 0:00:02]} Ng4 {[%emt 0:00:06]} 8. Qxg4 {[%emt 0:00:02]} Nxd4 {[%emt 0:00:02]} 9. Qd1 {[%emt 0:00:05]} Ne6 {[%emt 0:00:01]} 10. Be2 {[%emt 0:00:11]} Bxc3+ {[%emt 0:00:09]} 11. bxc3 {[%emt 0:00:02]} Qa5 {[%emt 0:00:06]} 12. Qd2 {[%emt 0:00:20]} O-O {[%emt 0:00:08]} 13. O-O {[%emt 0:00:03]} d6 {[%emt 0:00:03]} 14. f4 {[%emt 0:00:28]} Nc5 {[%emt 0:00:19]} 15. Qd4 {[%emt 0:03:53]} f5 {[%emt 0:00:38]} 16. e5 {[%emt 0:00:47]} Re8 {[%emt 0:00:54]} 17. Bf3 {[%emt 0:00:34]} Bd7 {[%emt 0:01:23]} 18. Rfe1 {[%emt 0:00:17]} Bc6 {[%emt 0:00:42]} 19. Bxc6 {[%emt 0:00:59]} bxc6 {[%emt 0:00:01]} 20. exd6 {[%emt 0:00:02]} exd6 {[%emt 0:00:01]} 21. Qxd6 {[%emt 0:00:21]} Ne4 {[%emt 0:00:40]} 22. Qxc6 {[%emt 0:00:19]} Rad8 {[%emt 0:01:34]} 23. Bd4 {[%emt 0:00:20]} Re7 {[%emt 0:00:29]} 24. Qb5 {[%emt 0:00:52]} Qc7 {[%emt 0:00:14]} 25. Be5 {[%emt 0:00:02]} Qd7 {[%emt 0:00:44]} 26. Qxd7 {[%emt 0:00:24]} Rexd7 {[%emt 0:00:01]} 27. Bd4 {[%emt 0:00:26]} Rc8 {[%emt 0:00:01]} 28. Reb1 {[%emt 0:00:33]} Rxc4 {[%emt 0:00:29]} 29. Rb3 {[%emt 0:00:48]} a5 {[%emt 0:00:34]} 30. Rab1 {[%emt 0:00:06]} Kf7 {[%emt 0:00:58]} 31. Rb7 {[%emt 0:00:06]} Ke6 {[%emt 0:00:54]} 32. Rxd7 {[%emt 0:00:14]} Kxd7 {[%emt 0:00:02]} 33. Rb5 {[%emt 0:00:35]} Ra4 {[%emt 0:00:11]} 34. Bb6 {[%emt 0:01:33]} Rxa2 {[%emt 0:00:22]} 35. Rxa5 {[%emt 0:00:01]} Rb2 {[%emt 0:00:01]} 36. g4 {[%emt 0:00:37]} Rxb6 {[%emt 0:00:23]} 37. gxf5 {[%emt 0:00:02]} gxf5 {[%emt 0:00:39]} 38. Rxf5 {[%emt 0:00:13]} Rg6+ {[%emt 0:00:12]} 39. Kf1 {[%emt 0:00:02]} Rf6 {[%emt 0:00:10]} 40. Rxf6 {[%emt 0:00:27]} Nxf6 {[%emt 0:00:01]} 41. Ke2 {[%emt 0:00:01]} Nd5 {[%emt 0:00:04]} 42. Kd3 {[%emt 0:00:04]} Nxf4+ {[%emt 0:00:02]} 43. Ke4 {[%emt 0:00:04]} Ne6 {[%emt 0:00:11]} 44. Ke5 {[%emt 0:00:11]} Ke7 {[%emt 0:00:02]} 45. c4 {[%emt 0:00:03]} Ng5 {[%emt 0:00:20]} 46. c5 {[%emt 0:00:56]} Ne6 {[%emt 0:00:38]} 47. c6 {[%emt 0:00:06]} Nc7 {[%emt 0:00:01]} 48. Kf5 {[%emt 0:00:09]} Kf7 {[%emt 0:00:04]} 49. Ke5 {[%emt 0:00:05]} Nb5 {[%emt 0:00:19]} 50. Kd5 {[%emt 0:00:02]} Kg6 {[%emt 0:00:06]} 51. Kc5 {[%emt 0:00:04]} Na7 {[%emt 0:01:09]} 52. c7 {[%emt 0:00:18]} Kf5 {[%emt 0:00:11]} 53. Kb6 {[%emt 0:00:02]} Nc8+ {[%emt 0:00:02]} 54. Kb7 {[%emt 0:00:00]} Ne7 {[%emt 0:01:38]} 55. Kb6 {[%emt 0:00:32]} h5 {[%emt 0:00:11]} 56. Kc5 {[%emt 0:00:05]} h4 {[%emt 0:00:11]} 57. Kd6 {[%emt 0:00:03]} Nc8+ {[%emt 0:00:01]} 58. Kd5 {[%emt 0:00:44]} Kg4 {[%emt 0:00:03]} 59. Ke4 {[%emt 0:00:01]} Kh3 {[%emt 0:00:07]} 60. Kf3 {[%emt 0:00:01]} Kxh2 {[%emt 0:00:03]} 61. Kf2 {[%emt 0:00:02]} h3 {[%emt 0:00:15]} 62. Kf1 {[%emt 0:00:02]} Kg3 {[%emt 0:00:01]} 63. Kg1 {[%emt 0:00:01]} Nd6 {[%emt 0:00:16]} 64. Kh1 {[%emt 0:00:01]} Ne4 {[%emt 0:00:14]} 65. c8=Q {[%emt 0:00:09]} Nf2+ {[%emt 0:00:03]} 66. Kg1 {[%emt 0:00:01]} h2+ {[%emt 0:00:01]} 67. Kf1 {[%emt 0:00:02]} h1=Q+ {[%emt 0:00:02]} 68. Ke2 {[%emt 0:00:02]} Qd1+ {[%emt 0:00:05]} 69. Ke3 {[%emt 0:00:02]} Qd3# {[%emt 0:00:02] Kd4} 0-1

[Event "ESP-ch Rapid 2018"]
[Site "Linares"]
[Date "2018.08.19"]
[Round "6"]
[White "Sanjuan Garcia, Miguel"]
[Black "Meler Tevar, Sergio"]
[Result "1-0"]
[ECO "B00"]
[WhiteElo "2115"]
[BlackElo "1807"]
[Annotator "NA"]
[PlyCount "61"]
[EventDate "2018.08.19"]
[EventType "team-tourn"]
[EventCountry "ESP"]
[SourceTitle "playchess.com"]
[Source "ChessBase"]
[SourceQuality "1"]
[TimeControl "900+5"]

1. e4 {[%emt 0:00:00]} Nc6 {[%emt 0:00:08]} 2. Nf3 {[%emt 0:00:00]} d6 {[%emt 0:00:00]} 3. d4 {[%emt 0:00:36]} e5 {[%emt 0:00:02]} 4. Bc4 {[%emt 0:00:25]} Be7 {[%emt 0:00:08]} 5. h3 {[%emt 0:00:06]} Nf6 {[%emt 0:00:05]} 6. Nc3 {[%emt 0:00:04]} O-O {[%emt 0:00:02]} 7. O-O {[%emt 0:00:07]} h6 {[%emt 0:00:07]} 8. Re1 {[%emt 0:00:03]} Nh7 {[%emt 0:00:03]} 9. Nd5 {[%emt 0:00:10]} Nxd4 {[%emt 0:01:18]} 10. Nxd4 {[%emt 0:00:12]} exd4 {[%emt 0:00:01]} 11. Qxd4 {[%emt 0:00:12]} Nf6 {[%emt 0:00:01]} 12. Nxe7+ {[%emt 0:00:10]} Qxe7 {[%emt 0:00:03]} 13. Bd2 {[%emt 0:01:34]} Be6 {[%emt 0:00:18]} 14. Bf1 {[%emt 0:00:46]} Nd7 {[%emt 0:00:42]} 15. Bc3 {[%emt 0:00:09]} f6 {[%emt 0:00:01]} 16. f4 {[%emt 0:01:19]} a6 {[%emt 0:01:01]} 17. b3 {[%emt 0:00:53]} b5 {[%emt 0:01:02]} 18. a4 {[%emt 0:00:12]} c5 {[%emt 0:00:06]} 19. Qd2 {[%emt 0:00:20]} b4 {[%emt 0:01:25]} 20. Bb2 {[%emt 0:00:01]} Nb6 {[%emt 0:00:01]} 21. a5 {[%emt 0:00:32]} Nc8 {[%emt 0:00:01]} 22. Bd3 {[%emt 0:01:02]} Qa7 {[%emt 0:00:11]} 23. Kh1 {[%emt 0:00:16]} Qb7 {[%emt 0:00:41]} 24. Qe3 {[%emt 0:01:05]} Qc6 {[%emt 0:00:45]} 25. Qg3 {[%emt 0:00:23]} c4 {[%emt 0:02:04]} 26. Bf1 {[%emt 0:00:40]} c3 {[%emt 0:00:07]} 27. Bc1 {[%emt 0:00:01]} Na7 {[%emt 0:00:33]} 28. f5 {[%emt 0:00:11]} Bc8 {[%emt 0:01:09]} 29. Bxh6 {[%emt 0:00:04]} Rf7 {[%emt 0:00:03]} 30. Bc4 {[%emt 0:00:02]} Qc7 {[%emt 0:01:09]} 31. Qxg7# 1-0

[Event "ESP-ch Rapid 2018"]
[Site "Linares"]
[Date "2018.08.19"]
[Round "6"]
[White "Arroyo Rodriguez, Jesus"]
[Black "Vega Gutierrez, Sabrina"]
[Result "1/2-1/2"]
[ECO "B34"]
[WhiteElo "2099"]
[BlackElo "2390"]
[Annotator "NA"]
[PlyCount "86"]
[EventDate "2018.08.19"]
[EventType "team-tourn"]
[EventCountry "ESP"]
[SourceTitle "playchess.com"]
[Source "ChessBase"]
[SourceQuality "1"]
[TimeControl "900+5"]

1. e4 {[%emt 0:00:00]} c5 {[%emt 0:00:00]} 2. Nf3 {[%emt 0:00:00]} Nc6 {[%emt 0:00:03]} 3. d4 {[%emt 0:00:00]} cxd4 {[%emt 0:00:02]} 4. Nxd4 {[%emt 0:00:01]} Nf6 {[%emt 0:00:22]} 5. Nc3 {[%emt 0:00:05]} e5 {[%emt 0:00:01]} 6. Ndb5 {[%emt 0:00:12]} d6 {[%emt 0:00:02]} 7. Bg5 {[%emt 0:00:06]} a6 {[%emt 0:00:02]} 8. Bxf6 {[%emt 0:00:06]} gxf6 {[%emt 0:00:02]} 9. Na3 {[%emt 0:00:02]} b5 {[%emt 0:00:03]} 10. Nd5 {[%emt 0:00:01]} Bg7 {[%emt 0:00:02]} 11. g3 {[%emt 0:00:17]} f5 {[%emt 0:00:14]} 12. Bg2 {[%emt 0:00:02]} f4 {[%emt 0:00:03]} 13. c3 {[%emt 0:00:47]} Be6 {[%emt 0:00:25]} 14. Nc2 {[%emt 0:01:38]} Ne7 {[%emt 0:00:48]} 15. Ncb4 {[%emt 0:00:39]} Ng6 {[%emt 0:00:18]} 16. h4 {[%emt 0:00:18]} a5 {[%emt 0:01:09]} 17. h5 {[%emt 0:00:10]} axb4 {[%emt 0:00:15]} 18. hxg6 {[%emt 0:00:02]} fxg6 {[%emt 0:01:23]} 19. gxf4 {[%emt 0:04:26]} bxc3 {[%emt 0:00:11]} 20. Nxc3 {[%emt 0:00:45]} exf4 {[%emt 0:01:29]} 21. Bh3 {[%emt 0:01:20]} Bc4 {[%emt 0:01:03]} 22. Qd2 {[%emt 0:00:16]} Qe7 {[%emt 0:00:32]} 23. O-O-O {[%emt 0:00:16]} Be5 {[%emt 0:00:54]} 24. Nd5 {[%emt 0:00:14]} Qb7 {[%emt 0:00:25]} 25. b3 {[%emt 0:00:26]} Bxd5 {[%emt 0:00:05]} 26. exd5 {[%emt 0:00:02]} Qc7+ {[%emt 0:03:13]} 27. Kb1 {[%emt 0:00:08]} Qc3 {[%emt 0:00:01]} 28. Qxc3 {[%emt 0:00:13]} Bxc3 {[%emt 0:00:02]} 29. Rd3 {[%emt 0:00:26]} b4 {[%emt 0:00:10]} 30. a4 {[%emt 0:00:01]} Ke7 {[%emt 0:00:15]} 31. Be6 {[%emt 0:00:09]} h5 {[%emt 0:00:08]} 32. Rf3 {[%emt 0:00:23]} g5 {[%emt 0:00:29]} 33. Rg1 {[%emt 0:00:16]} Kf6 {[%emt 0:00:02]} 34. Kc2 {[%emt 0:00:56]} Ra7 {[%emt 0:00:02]} 35. Kd3 {[%emt 0:00:09]} Rhh7 {[%emt 0:00:07]} 36. Ke4 {[%emt 0:00:39]} Rhc7 {[%emt 0:00:04]} 37. Rh3 {[%emt 0:00:36]} h4 {[%emt 0:00:02]} 38. Rc1 {[%emt 0:01:10]} Be5 {[%emt 0:00:14]} 39. Rhh1 {[%emt 0:00:01]} Bb2 {[%emt 0:00:29]} 40. Rxc7 {[%emt 0:00:24]} Rxc7 {[%emt 0:00:03]} 41. Rb1 {[%emt 0:00:02]} Be5 {[%emt 0:00:24]} 42. Bg4 {[%emt 0:00:08]} Rc2 {[%emt 0:00:19]} 43. f3 {[%emt 0:00:27]} Rc3 {[%emt 0:00:18]} 1/2-1/2

[Event "ESP-ch Rapid 2018"]
[Site "Linares"]
[Date "2018.08.19"]
[Round "6"]
[White "Lopez Gonzalez, Alfonso"]
[Black "Vazquez Pino, Miguel A"]
[Result "0-1"]
[ECO "E32"]
[WhiteElo "2063"]
[BlackElo "1909"]
[Annotator "NA"]
[PlyCount "44"]
[EventDate "2018.08.19"]
[EventType "team-tourn"]
[EventCountry "ESP"]
[SourceTitle "playchess.com"]
[Source "ChessBase"]
[SourceQuality "1"]
[TimeControl "900+5"]

1. d4 {[%emt 0:00:00]} Nf6 {[%emt 0:00:00]} 2. c4 e6 3. Nc3 {[%emt 0:00:00]} Bb4 {[%emt 0:00:00]} 4. Qc2 {[%emt 0:00:00]} O-O {[%emt 0:00:00]} 5. e4 {[%emt 0:00:00]} d5 {[%emt 0:00:09]} 6. e5 {[%emt 0:00:00]} Ne4 {[%emt 0:01:37]} 7. Bd3 {[%emt 0:00:00]} c5 {[%emt 0:00:53]} 8. a3 {[%emt 0:00:04]} Bxc3+ {[%emt 0:00:52]} 9. bxc3 {[%emt 0:00:02]} cxd4 {[%emt 0:00:01]} 10. cxd4 {[%emt 0:00:01]} Qa5+ {[%emt 0:00:08]} 11. Kf1 {[%emt 0:00:20]} Nc6 12. Ne2 {[%emt 0:00:07]} Nb4 {[%emt 0:00:46]} 13. axb4 {[%emt 0:00:39]} Qxa1 {[%emt 0:00:02]} 14. f3 {[%emt 0:00:38]} Bd7 {[%emt 0:00:40]} 15. fxe4 {[%emt 0:00:51]} dxc4 {[%emt 0:00:01]} 16. Bxc4 Rac8 17. Qa2 {[%emt 0:02:09]} Qxa2 {[%emt 0:00:11]} 18. Bxa2 {[%emt 0:00:01]} Bb5 {[%emt 0:00:00]} 19. Kf2 {[%emt 0:04:15]} Rc2 {[%emt 0:00:02]} 20. Bb3 {[%emt 0:00:19]} Rxe2+ {[%emt 0:00:02]} 21. Kf3 {[%emt 0:00:01]} Rc8 {[%emt 0:00:12]} 22. Ba4 {[%emt 0:02:43]} Rc3+ {[%emt 0:00:06]} 0-1

[Event "ESP-ch Rapid 2018"]
[Site "Linares"]
[Date "2018.08.19"]
[Round "6"]
[White "Bento Iglesias, Pablo"]
[Black "Perera Borrego, Maria Adela"]
[Result "0-1"]
[ECO "C00"]
[WhiteElo "2007"]
[BlackElo "2177"]
[Annotator "NA"]
[PlyCount "126"]
[EventDate "2018.08.19"]
[EventType "team-tourn"]
[EventCountry "ESP"]
[SourceTitle "playchess.com"]
[Source "ChessBase"]
[SourceQuality "1"]
[TimeControl "900+5"]

1. e4 {[%emt 0:00:00]} e6 {[%emt 0:00:00]} 2. c4 {[%emt 0:00:00]} e5 {[%emt 0:00:17]} 3. Nf3 {[%emt 0:00:12]} d6 {[%emt 0:00:04]} 4. Nc3 {[%emt 0:00:04]} Nf6 {[%emt 0:00:03]} 5. Be2 {[%emt 0:00:24]} g6 {[%emt 0:00:06]} 6. O-O {[%emt 0:00:04]} Bg7 {[%emt 0:00:00]} 7. d4 {[%emt 0:00:07]} exd4 {[%emt 0:00:19]} 8. Nxd4 {[%emt 0:00:02]} O-O {[%emt 0:00:04]} 9. f4 {[%emt 0:00:53]} Re8 {[%emt 0:00:07]} 10. Bf3 {[%emt 0:00:02]} c6 {[%emt 0:00:05]} 11. Kh1 {[%emt 0:00:11]} Nbd7 {[%emt 0:00:18]} 12. Be3 {[%emt 0:00:53]} Nc5 {[%emt 0:00:34]} 13. Qc2 {[%emt 0:00:39]} Qe7 {[%emt 0:02:23]} 14. e5 {[%emt 0:00:46]} dxe5 {[%emt 0:00:31]} 15. fxe5 {[%emt 0:00:06]} Qxe5 {[%emt 0:00:56]} 16. Bg1 {[%emt 0:01:24]} Bg4 {[%emt 0:02:18]} 17. Qf2 {[%emt 0:02:32]} Bxf3 {[%emt 0:01:41]} 18. Nxf3 {[%emt 0:00:02]} Nce4 {[%emt 0:00:29]} 19. Nxe5 {[%emt 0:00:32]} Nxf2+ {[%emt 0:00:02]} 20. Bxf2 {[%emt 0:00:04]} Rxe5 {[%emt 0:00:07]} 21. Rad1 {[%emt 0:00:22]} c5 {[%emt 0:02:09]} 22. h3 {[%emt 0:00:26]} b6 {[%emt 0:00:27]} 23. Bh4 {[%emt 0:00:03]} g5 {[%emt 0:00:10]} 24. Bg3 {[%emt 0:00:08]} Re3 {[%emt 0:00:08]} 25. Bf2 {[%emt 0:00:04]} Re6 {[%emt 0:00:14]} 26. Nb5 {[%emt 0:00:23]} Re7 {[%emt 0:00:19]} 27. b3 {[%emt 0:00:07]} Ne4 {[%emt 0:00:07]} 28. Nd6 {[%emt 0:01:02]} Nxd6 {[%emt 0:01:32]} 29. Rxd6 {[%emt 0:00:03]} Rae8 {[%emt 0:00:07]} 30. a4 {[%emt 0:00:05]} f5 {[%emt 0:00:20]} 31. Rd5 {[%emt 0:00:58]} Re5 {[%emt 0:00:11]} 32. Rfd1 {[%emt 0:00:01]} Kf7 {[%emt 0:00:05]} 33. h4 {[%emt 0:00:47]} h6 {[%emt 0:00:02]} 34. Rd7+ {[%emt 0:00:15]} R8e7 {[%emt 0:00:01]} 35. R1d5 {[%emt 0:00:27]} Bf6 {[%emt 0:00:34]} 36. Rxe5 {[%emt 0:00:13]} Bxe5 {[%emt 0:00:14]} 37. Rxe7+ {[%emt 0:00:02]} Kxe7 {[%emt 0:00:01]} 38. hxg5 {[%emt 0:00:28]} hxg5 {[%emt 0:00:00]} 39. Be3 {[%emt 0:00:05]} Bf6 {[%emt 0:00:07]} 40. Kh2 {[%emt 0:00:23]} Ke6 {[%emt 0:00:01]} 41. Bd2 {[%emt 0:00:07]} f4 {[%emt 0:00:16]} 42. a5 {[%emt 0:00:48]} Kf5 {[%emt 0:00:08]} 43. axb6 {[%emt 0:00:02]} axb6 {[%emt 0:00:01]} 44. b4 {[%emt 0:00:19]} g4 {[%emt 0:00:11]} 45. bxc5 {[%emt 0:00:05]} bxc5 {[%emt 0:00:01]} 46. Ba5 {[%emt 0:00:16]} Be5 {[%emt 0:00:03]} 47. Bb6 {[%emt 0:00:21]} Bd6 {[%emt 0:00:18]} 48. Kg1 {[%emt 0:00:11]} Ke4 {[%emt 0:00:01]} 49. Kf2 {[%emt 0:00:22]} Kd4 {[%emt 0:00:20]} 50. Ke2 {[%emt 0:00:01]} Kxc4 {[%emt 0:00:06]} 51. Bd8 {[%emt 0:00:05]} Kd4 {[%emt 0:00:05]} 52. Bb6 {[%emt 0:00:06]} Kd5 {[%emt 0:00:13]} 53. Kd3 {[%emt 0:00:05]} c4+ {[%emt 0:00:02]} 54. Ke2 {[%emt 0:00:04]} Ke4 {[%emt 0:00:08]} 55. Ba5 {[%emt 0:00:10]} Be5 {[%emt 0:00:02]} 56. Bb6 {[%emt 0:00:25]} Bd4 {[%emt 0:00:02]} 57. Bc7 {[%emt 0:00:09]} f3+ {[%emt 0:00:06]} 58. gxf3+ {[%emt 0:00:01]} gxf3+ {[%emt 0:00:01]} 59. Kd2 {[%emt 0:00:06]} c3+ {[%emt 0:00:04]} 60. Ke1 {[%emt 0:00:32]} Be3 {[%emt 0:00:02]} 61. Kd1 {[%emt 0:00:20]} f2 {[%emt 0:00:11]} 62. Ke2 {[%emt 0:00:01]} c2 {[%emt 0:00:01]} 63. Ba5 {[%emt 0:00:14]} f1=Q+ {[%emt 0:00:13]} 0-1

[Event "ESP-ch Rapid 2018"]
[Site "Linares"]
[Date "2018.08.19"]
[Round "6"]
[White "Ordonez Torres, Jesus"]
[Black "Guadamuro Torrente, Anabel"]
[Result "1/2-1/2"]
[ECO "C44"]
[WhiteElo "1989"]
[BlackElo "2145"]
[Annotator "NA"]
[PlyCount "102"]
[EventDate "2018.08.19"]
[EventType "team-tourn"]
[EventCountry "ESP"]
[SourceTitle "playchess.com"]
[Source "ChessBase"]
[SourceQuality "1"]
[TimeControl "900+5"]

1. e4 {[%emt 0:00:00]} e5 {[%emt 0:00:00]} 2. Nf3 {[%emt 0:00:00]} Nc6 {[%emt 0:00:01]} 3. d4 {[%emt 0:00:00]} exd4 {[%emt 0:00:02]} 4. Nxd4 {[%emt 0:00:03]} g6 {[%emt 0:00:11]} 5. Nxc6 {[%emt 0:00:29]} bxc6 {[%emt 0:00:14]} 6. Qd4 {[%emt 0:00:03]} Qf6 {[%emt 0:00:29]} 7. e5 {[%emt 0:00:27]} Qe6 {[%emt 0:00:42]} 8. Bc4 {[%emt 0:00:22]} d5 {[%emt 0:00:09]} 9. Bb3 {[%emt 0:00:38]} Bg7 {[%emt 0:01:15]} 10. O-O {[%emt 0:00:16]} Ne7 {[%emt 0:00:31]} 11. Re1 {[%emt 0:00:26]} O-O {[%emt 0:00:07]} 12. Bf4 {[%emt 0:00:58]} Nf5 {[%emt 0:00:44]} 13. Qd2 {[%emt 0:00:45]} Bb7 {[%emt 0:05:24]} 14. Nc3 {[%emt 0:00:07]} Rad8 {[%emt 0:00:05]} 15. Na4 {[%emt 0:00:18]} Rb8 {[%emt 0:02:48]} 16. Rad1 {[%emt 0:01:26]} h6 {[%emt 0:00:03]} 17. h3 {[%emt 0:00:16]} g5 {[%emt 0:00:13]} 18. Bh2 {[%emt 0:00:03]} Nh4 {[%emt 0:00:29]} 19. Nc5 {[%emt 0:00:50]} Qe7 {[%emt 0:00:11]} 20. Qa5 {[%emt 0:01:32]} Bc8 {[%emt 0:00:29]} 21. Nd3 {[%emt 0:00:33]} Ra8 {[%emt 0:01:55]} 22. Qa4 {[%emt 0:00:36]} Bd7 {[%emt 0:00:09]} 23. Qd4 {[%emt 0:00:54]} Bxh3 {[%emt 0:00:04]} 24. Bg3 {[%emt 0:02:52]} Nxg2 {[%emt 0:00:02]} 25. Kh2 {[%emt 0:00:44]} Nxe1 {[%emt 0:00:05]} 26. Rxe1 {[%emt 0:00:17]} Be6 {[%emt 0:00:01]} 27. c3 {[%emt 0:00:15]} h5 {[%emt 0:00:01]} 28. Kg2 {[%emt 0:00:20]} h4 {[%emt 0:00:04]} 29. Bh2 {[%emt 0:00:02]} g4 {[%emt 0:00:03]} 30. Nf4 {[%emt 0:00:26]} h3+ {[%emt 0:00:11]} 31. Kg1 {[%emt 0:00:06]} c5 {[%emt 0:00:04]} 32. Qe3 {[%emt 0:00:07]} c4 {[%emt 0:00:13]} 33. Bc2 {[%emt 0:00:01]} Qd7 {[%emt 0:00:03]} 34. Nh5 {[%emt 0:00:12]} Qe7 {[%emt 0:00:13]} 35. Bf4 {[%emt 0:00:11]} Qh4 {[%emt 0:00:04]} 36. Ng3 {[%emt 0:00:13]} h2+ {[%emt 0:00:01]} 37. Kh1 {[%emt 0:00:02]} Rfd8 {[%emt 0:00:08]} 38. Bg5 {[%emt 0:00:08]} Qh3 {[%emt 0:00:01]} 39. Bxd8 {[%emt 0:00:24]} Rxd8 {[%emt 0:00:01]} 40. Qg5 {[%emt 0:00:02]} Rd7 {[%emt 0:00:14]} 41. Bf5 {[%emt 0:00:42]} d4 {[%emt 0:00:13]} 42. Bxe6 {[%emt 0:00:09]} fxe6 {[%emt 0:00:00]} 43. Qg6 {[%emt 0:00:05]} Rf7 {[%emt 0:00:08]} 44. Qxe6 {[%emt 0:00:03]} d3 {[%emt 0:00:07]} 45. Qe8+ {[%emt 0:00:03]} Rf8 {[%emt 0:00:02]} 46. Qe6+ {[%emt 0:00:01]} Kh8 {[%emt 0:00:07]} 47. Rf1 {[%emt 0:00:13]} d2 {[%emt 0:00:04]} 48. Qd5 {[%emt 0:00:11]} Qxg3 {[%emt 0:00:09]} 49. fxg3 {[%emt 0:00:08]} Rxf1+ {[%emt 0:00:02]} 50. Kxh2 {[%emt 0:00:05]} d1=Q {[%emt 0:00:06]} 51. Qa8+ {[%emt 0:00:01]} Rf8 {[%emt 0:00:10]} 1/2-1/2

[Event "ESP-ch Rapid 2018"]
[Site "Linares"]
[Date "2018.08.19"]
[Round "6"]
[White "Ruiz Casado, Francisco Javier"]
[Black "Suarez Uriel, Adrian"]
[Result "0-1"]
[ECO "D70"]
[WhiteElo "1975"]
[BlackElo "2391"]
[Annotator "NA"]
[PlyCount "106"]
[EventDate "2018.08.19"]
[EventType "team-tourn"]
[EventCountry "ESP"]
[SourceTitle "playchess.com"]
[Source "ChessBase"]
[SourceQuality "1"]
[TimeControl "900+5"]

1. d4 {[%emt 0:00:00]} Nf6 {[%emt 0:00:00]} 2. c4 {[%emt 0:00:00]} g6 {[%emt 0:00:00]} 3. Nf3 {[%emt 0:00:04]} Bg7 {[%emt 0:00:00]} 4. e3 {[%emt 0:00:02]} O-O {[%emt 0:00:01]} 5. Be2 {[%emt 0:00:02]} d5 6. O-O {[%emt 0:00:26]} c6 {[%emt 0:00:32]} 7. b3 {[%emt 0:00:12]} Ne4 {[%emt 0:00:07]} 8. Bb2 {[%emt 0:00:16]} Nd7 {[%emt 0:00:10]} 9. Nc3 {[%emt 0:00:28]} Ndf6 {[%emt 0:00:10]} 10. Nxe4 {[%emt 0:00:08]} Nxe4 {[%emt 0:00:02]} 11. Nd2 {[%emt 0:00:24]} f5 {[%emt 0:00:02]} 12. f3 {[%emt 0:00:46]} Nd6 {[%emt 0:00:06]} 13. f4 {[%emt 0:00:17]} e6 {[%emt 0:00:03]} 14. Nf3 {[%emt 0:00:07]} b6 {[%emt 0:00:19]} 15. Ne5 {[%emt 0:00:07]} Bb7 {[%emt 0:00:01]} 16. Ba3 {[%emt 0:00:11]} Re8 {[%emt 0:00:15]} 17. Bxd6 {[%emt 0:00:04]} Qxd6 {[%emt 0:00:02]} 18. Bf3 {[%emt 0:00:17]} c5 {[%emt 0:00:25]} 19. Rc1 {[%emt 0:00:27]} cxd4 {[%emt 0:00:47]} 20. exd4 {[%emt 0:00:02]} Rac8 {[%emt 0:00:09]} 21. Rf2 {[%emt 0:00:15]} Re7 {[%emt 0:00:35]} 22. Rfc2 {[%emt 0:00:06]} Rec7 {[%emt 0:00:04]} 23. cxd5 {[%emt 0:01:28]} Rxc2 {[%emt 0:01:18]} 24. Rxc2 {[%emt 0:00:03]} Rxc2 {[%emt 0:00:54]} 25. Qxc2 {[%emt 0:00:02]} Bxd5 {[%emt 0:00:12]} 26. Qc8+ {[%emt 0:01:09]} Bf8 {[%emt 0:00:02]} 27. Bxd5 {[%emt 0:02:26]} Qxd5 {[%emt 0:00:02]} 28. Qd7 {[%emt 0:00:09]} Qxd7 {[%emt 0:00:31]} 29. Nxd7 {[%emt 0:00:02]} Ba3 {[%emt 0:00:20]} 30. d5 {[%emt 0:00:31]} exd5 {[%emt 0:00:01]} 31. Nf6+ {[%emt 0:00:01]} Kf7 {[%emt 0:00:01]} 32. Nxd5 {[%emt 0:00:01]} Ke6 {[%emt 0:00:22]} 33. Ne3 {[%emt 0:00:05]} Bc1 {[%emt 0:00:28]} 34. Nc2 {[%emt 0:00:14]} Bxf4 {[%emt 0:00:03]} 35. g3 {[%emt 0:00:40]} Bd6 {[%emt 0:00:10]} 36. Kf2 {[%emt 0:00:03]} Kd5 {[%emt 0:00:01]} 37. Kf3 {[%emt 0:00:15]} a5 {[%emt 0:00:14]} 38. h3 {[%emt 0:00:04]} b5 {[%emt 0:00:11]} 39. g4 {[%emt 0:00:08]} fxg4+ {[%emt 0:00:04]} 40. hxg4 {[%emt 0:00:01]} Bc5 {[%emt 0:00:30]} 41. Kf4 {[%emt 0:00:39]} h6 {[%emt 0:00:02]} 42. Kf3 {[%emt 0:01:04]} Ke5 {[%emt 0:00:14]} 43. a3 {[%emt 0:01:11]} b4 {[%emt 0:00:05]} 44. axb4 {[%emt 0:00:15]} axb4 {[%emt 0:00:01]} 45. Ne1 {[%emt 0:00:44]} Kd4 {[%emt 0:00:01]} 46. Ke2 {[%emt 0:00:41]} Kc3 {[%emt 0:00:05]} 47. Nd3 {[%emt 0:00:02]} Bd6 {[%emt 0:00:01]} 48. Nc1 {[%emt 0:00:03]} Kc2 {[%emt 0:00:03]} 49. Nd3 {[%emt 0:00:14]} Kxb3 {[%emt 0:00:02]} 50. Nf2 {[%emt 0:00:04]} Kc4 {[%emt 0:00:02]} 51. Ne4 {[%emt 0:00:05]} Be7 {[%emt 0:00:02]} 52. Nd2+ {[%emt 0:00:21]} Kc3 {[%emt 0:00:01]} 53. Ne4+ {[%emt 0:00:01]} Kd4 0-1

[Event "ESP-ch Rapid 2018"]
[Site "Linares"]
[Date "2018.08.19"]
[Round "6"]
[White "Gonzalez Fernandez, Manuel Jesus"]
[Black "Fernandez De Bobadilla, Gabriel"]
[Result "0-1"]
[ECO "B30"]
[WhiteElo "1340"]
[BlackElo "2175"]
[Annotator "NA"]
[PlyCount "43"]
[EventDate "2018.08.19"]
[EventType "team-tourn"]
[EventCountry "ESP"]
[SourceTitle "playchess.com"]
[Source "ChessBase"]
[SourceQuality "1"]
[TimeControl "900+5"]

1. e4 {[%emt 0:00:18]} c5 {[%emt 0:00:00]} 2. Nf3 {[%emt 0:00:01]} Nc6 {[%emt 0:00:06]} 3. c3 {[%emt 0:00:01]} d5 {[%emt 0:00:13]} 4. exd5 {[%emt 0:00:03]} Qxd5 {[%emt 0:00:03]} 5. d4 {[%emt 0:00:01]} e6 {[%emt 0:00:06]} 6. Be3 {[%emt 0:00:03]} cxd4 {[%emt 0:00:07]} 7. cxd4 {[%emt 0:00:01]} Nf6 {[%emt 0:00:04]} 8. Nc3 {[%emt 0:00:03]} Qd8 {[%emt 0:00:17]} 9. Bb5 {[%emt 0:00:24]} Bb4 {[%emt 0:00:42]} 10. Qa4 {[%emt 0:00:04]} Bd7 {[%emt 0:00:33]} 11. Bxc6 {[%emt 0:00:09]} Bxc3+ {[%emt 0:00:05]} 12. bxc3 {[%emt 0:00:02]} Bxc6 {[%emt 0:00:02]} 13. Qd1 {[%emt 0:00:06]} Qa5 {[%emt 0:00:30]} 14. Bd2 {[%emt 0:00:36]} Qa6 {[%emt 0:00:35]} 15. Qe2 {[%emt 0:00:12]} Bb5 {[%emt 0:00:05]} 16. Qe5 {[%emt 0:00:06]} O-O {[%emt 0:00:46]} 17. Bg5 {[%emt 0:00:14]} Nd5 {[%emt 0:00:17]} 18. h4 {[%emt 0:00:22]} f6 {[%emt 0:00:29]} 19. Bxf6 {[%emt 0:00:38]} Rxf6 {[%emt 0:00:24]} 20. h5 {[%emt 0:00:28]} Nf4 {[%emt 0:00:18]} 21. Qe4 {[%emt 0:00:31]} Nd3+ {[%emt 0:00:12]} 22. Kd2 {[%emt 0:00:10]} 0-1